[Event "44th Chess Olympiad Open 2022"]
[Site "Chennai"]
[Date "2022.07.30"]
[Round "2.48"]
[White "Zhemba, Jemusse"]
[Black "Isam, Gaith"]
[Result "1-0"]
[ECO "A85"]
[WhiteElo "2162"]
[BlackElo "1828"]
[Annotator "TA"]
[PlyCount "199"]
[EventDate "2022.07.29"]
[EventType "team-tourn"]
[EventCountry "IND"]
[SourceTitle "playchess.com"]
[Source "ChessBase"]
[SourceQuality "1"]
[WhiteTeam "Zimbabwe"]
[BlackTeam "Palestine"]
[WhiteTeamCountry "ZIM"]
[BlackTeamCountry "PLE"]
[TimeControl "40/5400+30:1800+30"]

{[%evp 10,199,12,15,40,33,42,33,45,32,41,0,-5,-19,14,-7,25,25,44,-2,50,56,60,53,47,43,50,44,31,14,29,15,65,30,17,0,54,55,57,30,37,37,37,37,37,0,79,62,142,122,122,122,122,122,122,125,123,122,125,116,121,104,104,104,158,155,160,160,171,169,159,162,160,134,147,159,169,146,154,130,177,177,154,160,156,139,139,105,139,100,102,54,69,6,6,6,9,10,11,6,10,6,6,6,6,0,0,0,0,0,0,0,0,0,0,0,0,0,10,0,0,0,0,0,93,93,93,93,93,93,119,118,117,93,110,93,119,93,93,93,93,37,93,93,93,79,93,93,93,79,93,72,128,0,93,79,93,94,93,72,72,23,84,0,0,0,0,0,0,0,12850,27999,27999,27999,27999,27999,27999,27999,27999,27999,27999,27999,27999,27999,27999,27999,27999,27999,27999,27999,27999,27999]} 1. Nf3 {[%emt 0:00:08]} f5 {[%emt 0:00:59]} 2. d4 {[%emt 0:01:05]} Nf6 {[%emt 0:00:16]} 3. c4 {[%emt 0:00:17]} e6 {[%emt 0:00:20]} 4. Nc3 {[%emt 0:00:38]} Bb4 {[%emt 0:00:32]} 5. Qb3 {[%emt 0:04:45]} Bxc3+ {[%emt 0:02:08]} 6. Qxc3 {[%emt 0:00:56]} Ne4 {[%emt 0:01:18] A85: Dutch Defence: 2 c4 Nf6 3 Nc3.} 7. Qc2 {[%emt 0:00:17]} d6 {[%emt 0:00:42] [#]} 8. b3 $146 {[%emt 0:01:38]} ({Predecessor:} 8. g3 b6 9. Bg2 c6 10. O-O O-O 11. Nd2 Nxd2 12. Bxd2 Qf6 13. Rad1 Bb7 14. e4 {½-½ (27) Wilen,E (2028)-Bornand,H (1728) Rhodes 2019}) 8... O-O {[%emt 0:00:12] White is slightly better.} 9. Bb2 {[%emt 0:00:20]} b6 {[%emt 0:02:49]} 10. Nd2 {[%emt 0:04:20]} (10. g3 $14) 10... Bb7 $11 {[%emt 0:05:54]} ({Resist} 10... Qh4 11. g3 Qe7 12. Nxe4 $16) 11. Nxe4 {[%emt 0:01:48]} Bxe4 {[%emt 0:01:23]} 12. Qc3 {[%emt 0:00:07][%cal Od4d5] And now d5! would win.} f4 {[%emt 0:03:58]} 13. h4 {[%emt 0:04:02]} Nd7 {[%emt 0:08:58]} 14. O-O-O {[%emt 0:03:51]} (14. f3 $14 Bb7 15. e3) 14... Qf6 {[%emt 0:04:50]} (14... Nf6 $11) 15. f3 $14 {[%emt 0:02:19]} Bb7 {[%emt 0:01:29]} 16. e4 {[%emt 0:00:57]} e5 {[%emt 0:05:27]} 17. Kb1 {[%emt 0:06:05]} exd4 {[%emt 0:03:35]} 18. Rxd4 {[%emt 0:00:29]} Ne5 {[%emt 0:00:50]} 19. Qe1 {[%emt 0:10:36]} Rae8 {[%emt 0:00:33]} 20. Be2 {[%emt 0:00:20]} Kf7 {[%emt 0:06:50]} (20... Qg6 $11) 21. b4 {[%emt 0:04:37][%cal Oc4c5] Threatens to win with c5!} (21. c5 $5) 21... c5 {[%emt 0:09:44]} 22. Rd1 {[%emt 0:00:22]} Ke7 {[%emt 0:03:12]} (22... Kg8 $11) 23. Qd2 {[%emt 0:00:52]} Rd8 {[%emt 0:01:41]} 24. Qc3 {[%emt 0:03:03]} Rd7 {[%emt 0:01:17]} 25. Ka1 {[%emt 0:00:42]} h6 {[%emt 0:00:06]} 26. Rd2 {[%emt 0:00:44]} Rfd8 {[%emt 0:00:59]} 27. Rhd1 {[%emt 0:00:42]} Nc6 {[%emt 0:06:54]} (27... Ke8 $11) 28. bxc5 {[%emt 0:04:14]} (28. Qa3 {is interesting.} Qf7 29. b5 Na5 30. Bc3) 28... Qxc3 {[%emt 0:04:31]} (28... bxc5 $14 29. Qxf6+ gxf6) 29. cxd6+ {[%emt 0:02:12]} Rxd6 {[%emt 0:02:17]} 30. Bxc3 {[%emt 0:00:09]} Rxd2 {[%emt 0:00:36]} 31. Rxd2 {[%emt 0:00:09]} Rxd2 {[%emt 0:00:33]} 32. Bxd2 $16 {[%emt 0:00:02][%mdl 4096] Endgame KBB-KBN} g5 {[%emt 0:00:39]} 33. hxg5 {[%emt 0:00:16]} hxg5 {[%emt 0:00:22]} 34. Kb2 {[%emt 0:01:16]} Nd4 {[%emt 0:02:59]} 35. Bd1 {[%emt 0:00:11]} Ne6 {[%emt 0:01:58]} 36. Bb4+ {[%emt 0:01:09]} Kf7 {[%emt 0:02:39]} (36... Nc5 $142 37. Kc3 Kf6) 37. Bd6 {[%emt 0:00:33]} Ke8 {[%emt 0:05:28]} 38. Kc3 {[%emt 0:00:47]} Kd7 {[%emt 0:00:37]} 39. Bb8 {[%emt 0:00:27]} Bc6 {[%emt 0:04:09]} 40. Be5 {[%emt 0:01:35]} (40. Bxa7 Kc7 $11) 40... Ke7 {[%emt 0:00:19]} 41. a3 {[%emt 0:30:30]} Ke8 {[%emt 0:32:54]} 42. Bc2 {[%emt 0:01:40]} Ke7 {[%emt 0:00:26]} 43. Bb8 {[%emt 0:00:32]} Kd7 {[%emt 0:00:39]} 44. Kd2 {[%emt 0:01:03]} (44. Bxa7 Kc7 $11) 44... Kc8 {[%emt 0:00:58]} (44... Nc5 $16 45. Kc3 (45. Bxa7 Kc7 $11) 45... Na6) 45. Be5 $18 {[%emt 0:00:19]} (45. Bxa7 $2 Kb7 46. Bxb6 Kxb6 $19) 45... Kd7 {[%emt 0:00:36]} 46. Bf6 {[%emt 0:00:39]} Ke8 {[%emt 0:00:26]} 47. Bc3 {[%emt 0:01:26]} Ke7 {[%emt 0:00:29]} 48. Ke1 {[%emt 0:00:31]} Nc5 {[%emt 0:02:55]} 49. Kf2 {[%emt 0:00:55]} Ke6 {[%emt 0:00:00]} 50. Bg7 {[%emt 0:00:00]} ({White should play} 50. g3 $16) 50... Bb7 $14 {[%emt 0:00:00]} 51. Bh6 {[%emt 0:00:00]} (51. g3 $14) 51... Kf6 $11 {[%emt 0:00:00]} 52. Bf8 {[%emt 0:00:00]} Ba6 {[%emt 0:00:00]} 53. Bd6 {[%emt 0:00:00]} Bxc4 {[%emt 0:00:00]} 54. Bb8 {[%emt 0:00:00]} a6 $1 {[%emt 0:00:00]} 55. Bc7 {[%emt 0:00:00]} b5 {[%emt 0:00:00]} 56. Bd8+ {[%emt 0:00:00]} Kg6 {[%emt 0:00:00]} 57. Be7 {[%emt 0:00:00]} Ne6 {[%emt 0:00:00]} 58. Bb4 {[%emt 0:00:00]} Nd4 {[%emt 0:00:00]} 59. Bb1 {[%emt 0:00:00]} Kf7 {[%emt 0:00:00]} 60. g3 {[%emt 0:00:00]} fxg3+ {[%emt 0:00:00]} 61. Kxg3 {[%emt 0:00:00]} Be2 {[%emt 0:00:00]} 62. f4 {[%emt 0:00:00]} gxf4+ {[%emt 0:00:00]} 63. Kxf4 {[%emt 0:00:00] aiming for Ke3.} Bc4 {[%emt 0:00:00]} 64. Ke5 {[%emt 0:00:00]} Nb3 {[%emt 0:05:01]} 65. Kd6 {[%emt 0:00:00]} a5 {[%emt 0:00:32]} 66. Be1 {[%emt 0:00:00]} a4 {[%emt 0:01:48]} (66... b4 $1 $11) 67. e5 $1 $16 {[%emt 0:00:00] Strongly threatening Bc3.} Nd4 {[%emt 0:00:09]} 68. Be4 {[%emt 0:00:00]} Ne6 {[%emt 0:00:48]} 69. Bf3 {[%emt 0:00:00]} Nd4 {[%emt 0:01:26]} 70. Bh5+ {[%emt 0:00:00]} Kf8 {[%emt 0:00:20]} 71. Bf2 {[%emt 0:00:00]} Nf5+ {[%emt 0:00:48]} 72. Kd7 {[%emt 0:00:00]} Ng7 {[%emt 0:00:34]} 73. Bc5+ {[%emt 0:00:00]} Kg8 {[%emt 0:00:01]} 74. Bg4 {[%emt 0:00:00]} Kf7 {[%emt 0:00:05]} 75. Kc6 {[%emt 0:00:12]} (75. Bb4 $16) 75... Bd3 {[%emt 0:00:38]} ({Better is} 75... Be6 $1 $14 76. Bxe6+ Kxe6) 76. Bb4 {[%emt 0:00:42]} Bc4 {[%emt 0:00:11]} 77. Bc3 {[%emt 0:00:47]} Bd3 {[%emt 0:00:02]} 78. Kd6 {[%emt 0:00:57] Black must now prevent e6+.} Bc4 {[%emt 0:00:12] Against e6+} 79. Bd7 {[%emt 0:00:26]} Ne6 {[%emt 0:01:45]} 80. Bc6 {[%emt 0:00:27]} Nf4 {[%emt 0:01:02]} (80... Ng7 $142) 81. Bd7 {[%emt 0:01:58]} Ne6 {[%emt 0:00:30]} 82. Kc6 {[%emt 0:01:57]} Ke7 {[%emt 0:00:32][%cal Oc4d5]} 83. Bb4+ {[%emt 0:00:10]} Kf7 {[%emt 0:00:11]} 84. Kb6 {[%emt 0:00:46]} Nd4 {[%emt 0:00:52]} 85. Bd6 {[%emt 0:00:42]} (85. Kc7 $1 $16) 85... Be6 {[%emt 0:01:14] [#]} (85... Nc2 $1 $11) 86. Bxe6+ {[%emt 0:01:49]} (86. Kc7 $1 $16) 86... Kxe6 {[%emt 0:00:01] KB-KN} 87. Kc5 {[%emt 0:00:01]} Nf5 {[%emt 0:00:04]} 88. Bb8 {[%emt 0:00:01]} Nh6 {[%emt 0:01:34]} 89. Kxb5 {[%emt 0:00:15]} Nf7 $2 {[%emt 0:00:09][%mdl 8192]} (89... Ng4 $11) 90. Kxa4 $18 {[%emt 0:00:10]} Kd7 {[%emt 0:00:34] [#] White mates.} 91. Kb5 $1 {[%emt 0:04:20]} Nd8 {[%emt 0:00:38]} 92. Kb6 {[%emt 0:01:09]} Kc8 {[%emt 0:00:42]} 93. Bd6 {[%emt 0:00:43]} Ne6 {[%emt 0:00:23]} 94. a4 {[%emt 0:00:27][%cal Ba3a4,Ba4a5,Ba5a6,Ba6a7][%mdl 32]} Nf4 {[%emt 0:00:02]} 95. a5 {[%emt 0:00:53]} Nd5+ {[%emt 0:00:01]} 96. Kc5 {[%emt 0:00:51]} Nf4 {[%emt 0:00:07]} 97. a6 {[%emt 0:00:18]} Ne6+ {[%emt 0:01:26]} 98. Kb6 {[%emt 0:01:36]} Nf4 {[%emt 0:00:06]} 99. a7 {[%emt 0:00:16]} Nd5+ {[%emt 0:00:02]} 100. Ka6 {[%emt 0:00:09] Weighted Error Value: White=0.12 (very precise) /Black=0.14 (very precise)} 1-0

[Event "44th Chess Olympiad Open 2022"]
[Site "Chennai"]
[Date "2022.07.30"]
[Round "2.48"]
[White "Miswadah, Baha"]
[Black "Mushore, Emarald Takudzwa"]
[Result "0-1"]
[ECO "D02"]
[WhiteElo "1985"]
[BlackElo "2153"]
[Annotator "TA"]
[PlyCount "114"]
[EventDate "2022.07.29"]
[EventType "team-tourn"]
[EventCountry "IND"]
[SourceTitle "playchess.com"]
[Source "ChessBase"]
[SourceQuality "1"]
[WhiteTeam "Palestine"]
[BlackTeam "Zimbabwe"]
[WhiteTeamCountry "PLE"]
[BlackTeamCountry "ZIM"]
[TimeControl "40/5400+30:1800+30"]

{[%evp 16,114,21,20,37,25,19,8,37,13,49,17,35,-20,-2,-53,-54,-66,6,-76,-89,-94,-31,-130,-113,-127,-137,-133,-144,-495,-223,-247,-205,-323,-222,-538,-400,-410,-410,-646,-645,-1421,-572,-577,-589,-596,-596,-576,-549,-578,-582,-572,-564,-512,-401,-919,-930,-885,-593,-891,-880,-860,-663,-1067,-1047,-1011,-1004,-900,-655,-627,-644,-755,-751,-827,-841,-816,-755,-1445,-1426,-1487,-1491,-1718,-1691,-2335,-2229,-2433,-2257,-29984,-29984,-29987,-29988,-29989,-29990,-29991,-29990,-29990,-29989,-29992,-29993,-29995,-29996]} 1. d4 {[%emt 0:00:08]} Nf6 {[%emt 0:00:12]} 2. Bf4 {[%emt 0:00:34]} e6 {[%emt 0:00:20]} 3. e3 {[%emt 0:00:12]} d5 {[%emt 0:01:13]} 4. Nf3 {[%emt 0:00:30]} Bd6 {[%emt 0:00:29]} 5. Bg3 {[%emt 0:00:20]} O-O {[%emt 0:00:28]} 6. Bd3 {[%emt 0:00:19]} c5 {[%emt 0:00:15]} 7. c3 {[%emt 0:00:22]} Nc6 {[%emt 0:00:10] 7...Qc7 deserves study.} 8. Nbd2 {[%emt 0:00:36]} Re8 {[%emt 0:00:31]} 9. Ne5 {[%emt 0:00:36]} Ne7 {[%emt 0:00:44] D02: 1 d4 d5 2 Nf3 sidelines, including 2...Nf6 3 g3 and 2...Nf6 3 Bf4.} 10. f4 {[%emt 0:01:14]} b6 {[%emt 0:00:29]} 11. Qf3 {[%emt 0:03:13]} Bb7 {[%emt 0:00:23] The position is equal.} 12. Bf2 {[%emt 0:04:59] [#]} Qc8 $146 {[%emt 0:03:10]} ({Predecessor:} 12... Rc8 13. g4 Bb8 14. g5 Ne4 15. Nxe4 dxe4 16. Bxe4 Bxe4 17. Qxe4 Qd5 18. Qxd5 exd5 {0-1 (62) Pisu,R (2304)-Cioara,A (2444) Cap Aurora 2018}) 13. g4 {[%emt 0:04:57]} (13. Bh4 $5 {[%cal Rh4f6]} Nf5 14. Bxf6 gxf6 15. Qg4+ Kf8 16. Qh5 (16. Bxf5 exf5 17. Qh3 Qe6 $17) 16... fxe5 17. fxe5 $16) 13... Nd7 {[%emt 0:03:51]} 14. Qh3 {[%emt 0:07:56]} (14. g5 $14) 14... Nf8 $11 {[%emt 0:00:10]} 15. Rg1 {[%emt 0:18:43]} ({Better is} 15. g5 $11) 15... Ba6 $15 {[%emt 0:06:26]} 16. Bc2 {[%emt 0:00:41]} b5 {[%emt 0:00:29]} (16... cxd4 $15 17. exd4 f6) 17. Qh5 {[%emt 0:06:06]} (17. dxc5 $11 {remains equal.} Bxe5 18. fxe5) 17... Bxe5 $17 {[%emt 0:02:39]} 18. dxe5 {[%emt 0:03:07]} Neg6 {[%emt 0:18:11]} (18... b4 $17) 19. Nf3 {[%emt 0:07:20]} (19. h4 $15) 19... Qb7 {[%emt 0:04:08] [#] ...b4 is the strong threat.} 20. Nd2 {[%emt 0:20:14]} b4 {[%emt 0:03:19] Strongly threatening ...bxc3.} 21. Rb1 {[%emt 0:05:08]} Qb5 {[%emt 0:01:54][%csl Ga6][%cal Rb5e2]} 22. c4 $2 {[%emt 0:02:04][%mdl 8192] This costs White the game.} (22. g5 $17) 22... Qa5 {[%emt 0:06:49]} (22... dxc4 $142 23. g5 Rad8) 23. Bb3 $19 {[%emt 0:01:33]} Rad8 {[%emt 0:01:03]} 24. Ke2 {[%emt 0:04:25]} (24. g5 {was called for.}) 24... Qc7 {[%emt 0:06:50]} ({Don't go for} 24... dxc4 $2 25. Nxc4 Nd7 26. Kf3 Bxc4 27. Bxc4 $19) 25. Rbd1 $2 {[%emt 0:00:24]} (25. Bg3 {is more resistant.}) 25... Qc6 {[%emt 0:00:00]} 26. Bg3 {[%emt 0:01:12]} dxc4 {[%emt 0:00:14]} 27. Nxc4 {[%emt 0:02:22]} (27. Bxc4 $142 Rxd2+ 28. Rxd2 Bxc4+ 29. Kf2) 27... Qe4 {[%emt 0:02:39]} 28. Rc1 {[%emt 0:01:03]} Rd4 {[%emt 0:00:33]} (28... Rd3 $142 {( -> ...Rxe3+)} 29. g5 Red8) 29. Kf2 {[%emt 0:01:11] [#]} Bxc4 $1 {[%emt 0:00:32]} 30. Bxc4 {[%emt 0:03:06]} Rxc4 {[%emt 0:00:29]} 31. g5 {[%emt 0:00:43]} Rd8 {[%emt 0:02:00][%cal Be8d8,Bd8d5,Bd5d1,Bd1c1][%mdl 32]} 32. Qe2 {[%emt 0:00:16] Against Rd2} Rxc1 {[%emt 0:00:36]} 33. Rxc1 {[%emt 0:00:13]} Rd5 {[%emt 0:00:59]} 34. Rc4 {[%emt 0:00:57]} Qh1 {[%emt 0:00:21]} 35. e4 {[%emt 0:00:34]} (35. Qe1 $142 Qxe1+ 36. Kxe1) 35... Rd1 {[%emt 0:00:53]} 36. Ke3 {[%emt 0:00:18]} Rc1 {[%emt 0:01:06]} 37. Kd2 {[%emt 0:00:47]} Rg1 {[%emt 0:00:37] White must now prevent ...Rg2.} 38. Ke3 {[%emt 0:00:19]} Rg2 {[%emt 0:00:24]} 39. Qf3 {[%emt 0:00:44]} Qg1+ {[%emt 0:00:42]} 40. Bf2 {[%emt 0:00:21]} Qxh2 {[%emt 0:01:03]} 41. Rxc5 {[%emt 0:30:33]} Qxf4+ {[%emt 0:35:41]} 42. Qxf4 {[%emt 0:00:00]} Nxf4 {[%emt 0:00:00]} 43. Ra5 {[%emt 0:00:00]} Nh3 {[%emt 0:00:00]} 44. Be1 {[%emt 0:00:00]} Rxb2 {[%emt 0:00:00]} 45. Rxa7 {[%emt 0:00:00]} Nxg5 {[%emt 0:00:00]} 46. Kd3 {[%emt 0:00:00]} Nf3 {[%emt 0:00:00][%csl LRe1,LRe5]} 47. Bg3 {[%emt 0:00:00]} g5 {[%emt 0:00:00][%cal Bg7g5,Bg5g4][%mdl 32]} 48. Ke3 {[%emt 0:00:00]} g4 {[%emt 0:00:00] Hoping for ...h5.} 49. a4 {[%emt 0:00:00]} h5 {[%emt 0:00:00] aiming for ...Rb3+.} 50. a5 {[%emt 0:00:00]} Rb3+ {[%emt 0:00:00]} 51. Kf2 {[%emt 0:00:00]} Ng6 {[%emt 0:00:00] Black mates.} 52. a6 {[%emt 0:00:00]} h4 {[%emt 0:00:00]} 53. Bxh4 {[%emt 0:00:00]} Nfxh4 {[%emt 0:00:00]} 54. Ra8+ {[%emt 0:00:00]} Kg7 {[%emt 0:00:00]} 55. a7 {[%emt 0:00:00]} Ra3 {[%emt 0:00:00]} 56. Rb8 {[%emt 0:00:00]} g3+ {[%emt 0:00:00]} 57. Kf1 {[%emt 0:00:00]} Ra2 {[%emt 0:00:00] Weighted Error Value: White=1.02/Black=0.57} 0-1

[Event "44th Chess Olympiad Open 2022"]
[Site "Chennai"]
[Date "2022.07.30"]
[Round "2.48"]
[White "seder mohamad"]
[Black "Mwadzura, Roy"]
[Result "1/2-1/2"]
[ECO "C05"]
[WhiteElo "1950"]
[BlackElo "2093"]
[Annotator "TA"]
[PlyCount "113"]
[EventDate "2022.07.29"]
[EventType "team-tourn"]
[EventCountry "IND"]
[SourceTitle "playchess.com"]
[Source "ChessBase"]
[SourceQuality "1"]
[WhiteTeam "Palestine"]
[BlackTeam "Zimbabwe"]
[WhiteTeamCountry "PLE"]
[BlackTeamCountry "ZIM"]
[TimeControl "40/5400+30:1800+30"]

{[%evp 15,113,0,0,0,48,25,48,44,56,50,47,53,115,116,112,124,212,105,146,149,142,159,167,127,145,124,170,109,119,122,120,120,155,61,129,88,85,82,105,64,64,64,64,57,64,64,64,0,64,57,57,-8,-19,-15,-15,-15,-15,0,-92,-179,-183,-270,-227,-895,-92,-92,-92,-127,-127,-127,-135,-142,-142,-142,-142,-142,-142,-142,-5,-12,-4,-4,-4,-4,-4,-4,-4,-4,0,-4,-4,-4,-4,-4,-4,-4,-4,-4,-4,-4]} 1. e4 {[%emt 0:00:05][%cal Be2e4,Be4e5][%mdl 32]} e6 {[%emt 0:01:34]} 2. d4 {[%emt 0:00:23]} d5 {[%emt 0:00:09]} 3. Nd2 {[%emt 0:00:09]} Nf6 {[%emt 0:00:11]} 4. e5 {[%emt 0:00:37]} Nfd7 {[%emt 0:00:11]} 5. f4 {[%emt 0:00:17]} c5 {[%emt 0:00:14]} 6. c3 {[%emt 0:00:25]} Nc6 {[%emt 0:00:09]} 7. Ndf3 {[%emt 0:00:24]} Qb6 {[%emt 0:04:03]} 8. a3 $1 {[%emt 0:00:30][%mdl 4] is more profitable than 8.g3 at the moment.} a5 {[%emt 0:04:39]} 9. Ne2 {[%emt 0:01:38][%cal Of4f5] C05: French Tarrasch: 3...Nf6 4 e5 Nfd7, 5 f4 and 5 Bd3 sidelines.} f6 {[%emt 0:01:47]} (9... a4 $11) 10. g3 $14 {[%emt 0:03:22]} a4 {[%emt 0:07:41]} 11. Bh3 {[%emt 0:02:49] White is slightly better.} f5 {[%emt 0:03:37] [#]} 12. g4 $146 {[%emt 0:07:57]} ({Predecessor:} 12. Qc2 Be7 13. Be3 Na5 14. Nd2 Qc6 15. O-O b5 16. g4 g6 17. gxf5 gxf5 18. Bg2 {0-1 (42) Vaisalie,K (1581)-Chitlange,S (1712) Puducherry 2013}) 12... g6 {[%emt 0:04:17]} 13. gxf5 {[%emt 0:03:07]} exf5 {[%emt 0:01:33]} (13... gxf5 $14 14. Ng5 Ne7) 14. Bg2 $16 {[%emt 0:05:46]} Be7 {[%emt 0:04:12]} 15. h4 {[%emt 0:01:36]} h5 {[%emt 0:02:17]} (15... Nf8 $16 16. dxc5 Bxc5) 16. O-O {[%emt 0:06:28]} (16. c4 $1 $18 {is more deadly.}) 16... cxd4 {[%emt 0:02:28]} 17. cxd4 {[%emt 0:02:54]} (17. Nexd4 $6 Nc5 $14) 17... Qd8 {[%emt 0:01:10]} 18. Ng5 {[%emt 0:13:41]} Nb6 {[%emt 0:00:12]} 19. Kh2 {[%emt 0:06:14]} Na5 {[%emt 0:03:16]} 20. Nc3 {[%emt 0:01:56]} Nac4 {[%emt 0:02:59]} (20... Bxg5 $16 {was necessary.} 21. fxg5 Nb3) 21. b3 {[%emt 0:04:11]} (21. Bf3 $18) 21... axb3 {[%emt 0:05:55]} 22. Qxb3 {[%emt 0:01:55][%cal Oc3d5] Threatens to win with Nxd5!} Ra5 {[%emt 0:04:25]} 23. a4 {[%emt 0:03:07]} O-O {[%emt 0:04:39]} 24. Rd1 {[%emt 0:06:27]} (24. Bf3 $16) 24... Kh8 {[%emt 0:06:44]} (24... Bxg5 $14 25. hxg5 (25. fxg5 f4 $14) 25... Be6) 25. Bd2 {[%emt 0:07:09]} Bxg5 {[%emt 0:14:55]} 26. hxg5 {[%emt 0:00:14]} (26. fxg5 $6 f4 27. Nb5 Nxd2 28. Rxd2 f3 $11) 26... Be6 {[%emt 0:00:10]} 27. Nb5 {[%emt 0:02:03]} Nxd2 {[%emt 0:00:20]} 28. Rxd2 {[%emt 0:00:03] Bf1 is the strong threat.} Nc4 {[%emt 0:00:19]} 29. Re2 {[%emt 0:02:06]} Qb6 {[%emt 0:01:29]} 30. Rb1 {[%emt 0:01:24]} Rfa8 {[%emt 0:00:30]} 31. Ra2 {[%emt 0:03:24] White is more active.} (31. Qd3 $14) 31... Kg8 {[%emt 0:03:46]} (31... Rxb5 $1 $11 32. Qxb5 (32. axb5 Rxa2 33. Qxa2 Qxd4 $11) 32... Qxd4) 32. Kh1 {[%emt 0:02:06]} R5a6 {[%emt 0:01:31]} 33. Nd6 {[%emt 0:04:12]} ({White should play} 33. Bf3 $14) 33... Qxd4 $11 {[%emt 0:05:09]} 34. Qxb7 {[%emt 0:01:31] Strongly threatening Qe7.} Qxf4 {[%emt 0:05:35]} 35. Bxd5 {[%emt 0:00:59] The board is on fire.} Qxe5 {[%emt 0:00:26]} 36. Bxc4 {[%emt 0:03:00] Hoping for Re2.} Qxd6 {[%emt 0:00:09]} 37. Bxe6+ {[%emt 0:00:54]} (37. Rd2 $17 Qxd2 38. Bxe6+ Rxe6 39. Qxa8+ Kf7 40. Rb7+ Re7 41. Rxe7+ Kxe7 42. Qb7+ Qd7 43. Qb4+ Qd6 44. Qb2) 37... Qxe6 $19 {[%emt 0:00:06]} 38. Rc1 {[%emt 0:02:06]} (38. Raa1 {was called for.}) 38... R6a7 {[%emt 0:01:11]} (38... Qxa2 $2 39. Rc8+ Rxc8 40. Qxc8+ Kg7 41. Qxa6 $19) 39. Qc6 {[%emt 0:00:35]} (39. Qg2) 39... Qxc6+ $2 {[%emt 0:01:17]} (39... Qxa2 $19 40. Qxg6+ Rg7 41. Qxf5 Qf7 42. Qxf7+ Kxf7 43. Rc7+ Kg6) 40. Rxc6 {[%emt 0:00:01][%mdl 4096] Endgame KRR-KRR} Ra6 {[%emt 0:01:12]} ({But not} 40... Rxa4 $6 41. Rxa4 Rxa4 42. Rxg6+ Kh7 43. Rf6 $11) 41. Rac2 {[%emt 0:31:10][%cal Oa4a5]} Rxc6 $1 {[%emt 0:32:17]} ({Of course not} 41... Rxa4 $6 42. Rxg6+ Kh8 43. Rh6+ Kg8 44. Rg6+ Kf8 45. Rf6+ Ke8 46. Rxf5 $11) 42. Rxc6 $17 {[%emt 0:00:08] [#] KR-KR} Kf7 {[%emt 0:00:03]} ({Don't play} 42... Rxa4 $6 43. Rxg6+ Kh7 44. Rf6 $11) 43. Rc7+ {[%emt 0:01:59]} Ke6 {[%emt 0:00:11]} 44. Rc6+ {[%emt 0:00:00] [#]} Ke5 $1 {[%emt 0:00:00]} 45. Rxg6 {[%emt 0:00:00]} Rxa4 {[%emt 0:00:00]} 46. Rb6 {[%emt 0:00:00]} Rh4+ {[%emt 0:00:00]} (46... Kf4 $17 47. g6 Ra7) 47. Kg2 $11 {[%emt 0:00:00] The position is equal.} Rg4+ {[%emt 0:00:00]} 48. Kf3 {[%emt 0:00:00]} h4 {[%emt 0:00:00] White should prevent ...Rg3+.} 49. Rb5+ {[%emt 0:00:00]} Ke6 {[%emt 0:00:00]} 50. Rb6+ {[%emt 0:00:00]} Ke7 {[%emt 0:00:00]} 51. Rh6 {[%emt 0:00:00]} (51. Rg6 {looks sharper.} h3 52. Rh6 h2 53. Rxh2 Rxg5 54. Kf4) 51... Rxg5 {[%emt 0:00:00]} 52. Rxh4 {[%emt 0:00:00]} Kf6 {[%emt 0:00:00]} 53. Ra4 {[%emt 0:00:00]} Rg1 {[%emt 0:00:00]} 54. Ra8 {[%emt 0:00:00]} Rb1 {[%emt 0:00:26]} 55. Rf8+ {[%emt 0:00:00]} Ke6 {[%emt 0:00:48]} 56. Re8+ {[%emt 0:00:00]} Kf7 {[%emt 0:00:03]} 57. Ra8 {[%emt 0:00:00] Quite a comeback for White.  Weighted Error Value: White=0.33/Black=0.28 (precise)} 1/2-1/2